bitfinex/quotes_ETHUSD_20241123
["timestamp","ask_amount","ask_price","bid_price","bid_amount"]
[1732375588013,0.02887895,3464.3,3461.6,0.02888484]
[1732375588213,0.55,3463.8,3461.6,0.02888484]
[1732375588449,0.02887895,3463.7,3461.6,0.02888484]
[1732375589406,0.55,3463.5,3461.6,0.02888484]
[1732375589611,0.755,3463.3,3461.6,0.02888484]
[1732375589920,0.55,3463.2,3461.6,0.02888484]
[1732375591006,0.57887895,3463.2,3461.6,0.02888484]
[1732375591247,0.55,3463.2,3461.6,0.02888484]
[1732375592140,0.755,3463.7,3461.7,0.2878]
[1732375592350,0.703171,3464.5,3461.9,0.2878]
[1732375592644,0.755,3464.4,3462.0,0.02887128]
[1732375593146,0.02887895,3464.3,3462.0,0.02887128]
[1732375593349,0.755,3464.2,3462.0,0.02887128]
[1732375593523,0.02887895,3464.1,3462.0,0.02887128]
[1732375593839,0.755,3464.0,3462.0,0.02887128]
[1732375594155,0.57887895,3463.9,3461.9,0.3166713]
[1732375594448,0.755,3463.8,3461.7,0.0288713]
[1732375594608,0.57887895,3463.7,3461.7,0.0288713]
[1732375595513,0.55,3463.7,3461.7,0.0288713]
[1732375596116,0.755,3463.8,3461.7,0.0288713]
[1732375597954,0.57887895,3463.7,3461.7,0.0288713]
[1732375598121,0.55,3463.5,3461.7,0.0288713]
[1732375598308,0.755,3463.3,3461.6,0.02887626]
[1732375598651,0.57887895,3463.2,3461.6,0.02887626]
[1732375598952,0.55,3463.2,3461.6,0.02887626]
[1732375599451,0.57887895,3463.1,3461.6,0.02887626]
[1732375599943,0.55,3463.2,3461.6,0.02887626]
[1732375600368,0.57887895,3463.2,3461.6,0.02887626]
[1732375600751,0.55,3463.2,3461.6,0.02887626]
[1732375601047,0.03609816,3463.1,3461.5,0.18045319]
[1732375601212,0.55,3463.0,3461.6,0.01444205]
[1732375601759,0.55,3463.2,3461.6,0.01444205]
[1732375603856,0.55,3463.2,3461.6,0.30224205]
[1732375607361,0.7564,3463.1,3461.6,0.30224205]
[1732375607577,0.7564,3462.9,3461.6,0.2878]
[1732375607851,0.55,3462.8,3461.6,0.2878]
[1732375608055,0.55,3462.8,3461.7,0.01444798]
[1732375608358,0.55,3463.0,3461.7,0.01444798]
[1732375608653,0.55,3463.3,3461.7,0.01444798]
[1732375608881,0.8282,3463.0,3461.7,0.01444798]
[1732375609223,0.55,3462.9,3461.6,0.2878]
[1732375609424,0.8282,3462.8,3461.6,0.2878]
[1732375610328,0.8282,3462.8,3461.7,0.01444794]
[1732375610935,0.8282,3462.8,3461.6,0.2878]
[1732375611467,0.8282,3462.8,3461.7,0.01444794]
[1732375611678,0.8282,3462.8,3461.6,0.2878]
[1732375614095,0.8282,3462.8,3461.7,0.01444797]
[1732375614281,0.55,3462.7,3461.7,0.01444797]
[1732375614851,0.31674386,3463.4,3461.7,0.01444797]
[1732375615190,0.03610157,3464.2,3462.1,0.9564]
[1732375615494,0.03610157,3464.2,3462.5,0.2878]
[1732375616189,0.03609088,3464.1,3461.6,0.2878]
[1732375616408,0.32797353,3464.1,3462.0,0.2878]
[1732375616595,0.03609088,3464.1,3462.1,0.6686]
[1732375617089,0.55,3464.0,3462.2,0.2878]
[1732375617294,0.03609566,3464.0,3462.4,0.2878]
[1732375617499,0.03609566,3464.2,3462.5,0.6686]
[1732375617858,0.1,3466.2,3461.6,0.01444487]
[1732375617859,0.03609118,3464.5,3462.8,0.2878]
[1732375618210,0.1,3465.4,3463.0,0.2878]
[1732375618211,0.8282,3464.4,3463.0,0.2878]
[1732375618497,0.8282,3464.4,3463.1,0.9564]
[1732375619059,0.8282,3464.4,3461.6,0.30338727]
[1732375619060,0.8282,3464.8,3463.3,0.6686]
[1732375619392,0.03608172,3464.7,3463.3,0.6686]
[1732375619594,0.8282,3464.8,3463.3,0.6686]
[1732375619982,0.03608171,3465.5,3463.3,0.6686]
[1732375620247,0.8282,3465.4,3463.6,0.6686]
[1732375620372,0.1,3466.6,3462.1,0.2889424]
[1732375620373,0.8282,3465.7,3463.8,0.2878]
[1732375620586,0.8282,3465.7,3464.2,0.2878]
[1732375620761,0.03607249,3465.6,3464.2,0.2878]
[1732375620956,0.8282,3465.7,3464.2,0.2878]
[1732375621202,0.8282,3465.7,3464.3,0.6686]
[1732375621498,0.8282,3465.7,3464.4,0.6686]
[1732375621870,0.8282,3466.3,3464.4,0.6686]
[1732375622070,0.03606835,3466.2,3464.4,0.6686]
[1732375622571,0.03606836,3466.2,3464.6,0.6686]
[1732375622776,0.03606836,3466.2,3464.7,0.2878]
[1732375623185,0.8282,3466.3,3464.9,0.6686]
[1732375623388,0.8282,3466.9,3465.0,0.34292222]
[1732375623596,0.03606422,3466.8,3465.1,0.6686]
[1732375623803,0.03606422,3466.8,3465.2,0.34292222]
[1732375624010,0.03155959,3466.8,3465.3,1.03039468]
[1732375624317,0.03606124,3466.8,3465.5,0.6686]
[1732375624487,0.03606124,3466.8,3465.6,0.34292222]
[1732375624685,0.03606124,3466.8,3465.7,0.34292222]
[1732375624897,0.03606124,3466.8,3465.8,0.34292222]
[1732375625102,0.7895,3467.2,3465.9,1.01152222]
[1732375625279,0.82556021,3467.6,3466.1,0.6686]
[1732375625611,0.82556021,3467.6,3466.3,0.6825]
[1732375625612,0.14859542,3467.6,3466.3,0.6825]
[1732375625771,0.16578579,3467.6,3466.4,0.34292222]
[1732375625977,0.16578579,3467.6,3466.5,0.34292222]
[1732375626177,0.16156798,3467.5,3466.4,0.34292222]
[1732375626389,0.01719037,3467.4,3466.3,0.6825]
[1732375627097,0.18129126,3467.4,3466.3,0.6825]
[1732375627405,0.1,3468.0,3465.6,0.32253011]
[1732375627406,1.45420406,3467.9,3466.5,0.6825]
[1732375627617,1.44989401,3467.7,3466.5,1.02392137]
[1732375627775,0.01719037,3467.6,3466.5,1.02392137]
[1732375627972,0.01719037,3467.6,3466.5,0.6825]
[1732375628609,0.21399944,3467.9,3466.5,0.6825]
[1732375628610,0.56719037,3467.8,3466.5,0.6825]
[1732375628810,0.55,3467.4,3466.1,1.02392137]
[1732375629021,0.8085,3467.2,3465.7,0.6825]
[1732375629177,0.56719037,3467.1,3465.8,0.34142137]
[1732375629377,0.56719037,3467.1,3465.7,0.6825]
[1732375629820,0.55,3466.9,3465.7,0.6825]
[1732375630026,0.55,3466.7,3465.7,0.6825]
[1732375630179,0.55,3466.4,3465.2,1.02392137]
[1732375630511,0.01719037,3466.3,3465.2,0.6825]
[1732375631500,0.55,3466.2,3465.2,0.6825]
[1732375632096,0.82569037,3466.5,3465.2,0.6825]
[1732375632297,0.56719037,3466.4,3465.2,0.6825]
[1732375632501,0.55,3466.2,3464.7,0.6825]
[1732375632728,0.55,3466.0,3464.7,0.6825]
[1732375632915,0.01719037,3465.9,3464.3,0.6825]
[1732375633121,0.55,3465.5,3464.3,0.6825]
[1732375633276,0.01719037,3465.4,3464.3,0.6825]
[1732375633484,0.01719037,3465.4,3463.9,0.6825]
[1732375633980,0.01719037,3465.4,3464.0,0.34142137]
[1732375634594,0.01719037,3465.4,3464.1,0.34142137]
[1732375634805,0.01719037,3465.4,3464.0,0.34142137]
[1732375635010,0.55,3465.5,3464.8,0.6825]
[1732375635324,0.55,3465.8,3464.8,0.6825]
[1732375635617,0.82569037,3466.4,3464.9,0.34142137]
[1732375636030,0.8085,3466.4,3465.0,0.07250361]
[1732375636178,0.01719037,3466.3,3465.0,0.38507016]
[1732375636508,0.01719037,3466.3,3465.0,0.04364879]
[1732375636708,0.177965,3466.3,3465.0,0.38507016]
[1732375636910,0.55,3465.9,3465.0,0.04364879]
[1732375637084,0.01719037,3465.8,3465.0,0.04364879]
[1732375639035,0.01719037,3466.2,3465.0,0.04364879]
[1732375639225,0.01719037,3466.3,3465.1,0.34095036]
[1732375639425,0.8085,3466.4,3465.3,0.6825]
[1732375639626,0.8085,3466.4,3465.4,0.34095036]
[1732375639921,0.01719037,3466.3,3465.3,0.6825]
[1732375640101,0.01719037,3466.3,3465.1,0.34095036]
[1732375640302,0.56719037,3466.3,3465.0,0.72614879]
[1732375640524,0.55,3466.1,3465.0,0.72614879]
[1732375640731,0.01719037,3466.0,3465.0,0.72614879]
[1732375641242,0.01719037,3466.0,3465.1,0.34095036]
[1732375641401,0.01719037,3466.1,3465.2,0.34095036]
[1732375641600,0.01719037,3466.1,3465.3,0.34095036]
[1732375641807,0.01719037,3466.1,3465.4,0.34095036]
[1732375642019,0.01719037,3466.1,3465.1,0.34095036]
[1732375642197,0.01719037,3466.1,3465.2,0.34095036]
[1732375642405,0.01719037,3466.3,3465.3,0.34095036]
[1732375642647,0.56719037,3466.3,3465.4,0.34095036]
[1732375642809,0.56719037,3466.3,3465.5,0.34095036]
[1732375643009,0.55,3466.1,3465.1,0.34095036]
[1732375643239,0.01719037,3466.0,3465.2,0.34095036]
[1732375643434,0.01719037,3466.0,3465.3,0.34095036]
[1732375643742,0.01719037,3466.0,3465.4,0.34095036]
[1732375643920,0.01719037,3466.0,3465.1,0.34095036]
[1732375644259,0.7573,3465.9,3465.2,0.34095036]
[1732375644534,0.56719037,3465.8,3465.3,0.34095036]
[1732375644745,0.55,3465.6,3465.1,0.34095036]
[1732375644950,0.01719037,3465.5,3465.1,0.34095036]
[1732375645803,0.56719037,3465.6,3465.1,0.34095036]
[1732375646004,0.73316527,3465.6,3465.2,0.34095036]
[1732375646220,0.73316527,3465.6,3465.1,0.34095036]
[1732375646437,0.73316527,3465.6,3465.2,0.34095036]
[1732375646655,0.73316527,3465.6,3465.3,0.34095036]
[1732375646821,0.73316527,3465.6,3465.1,0.34095036]
[1732375647031,0.73316527,3465.6,3465.2,0.34095036]
[1732375647324,0.73316527,3465.6,3465.3,0.34095036]
[1732375647526,0.73316527,3465.6,3465.4,0.34095036]
[1732375647739,0.73316527,3465.6,3465.5,0.34095036]
[1732375648663,0.73316527,3465.6,3465.0,0.04364879]
[1732375648845,0.73316527,3465.6,3465.5,0.34329382]
[1732375649153,0.81,3465.2,3465.0,0.04364879]
[1732375649315,0.56719037,3465.1,3465.0,0.04364879]
[1732375649518,0.56719037,3465.1,3465.0,0.38700517]
[1732375649813,0.01719037,3465.1,3465.0,0.38700517]
[1732375650315,0.55,3465.2,3465.0,0.38700517]
[1732375650512,0.56719037,3465.2,3465.1,0.34335638]
[1732375650745,0.1,3465.7,3465.0,0.04364879]
[1732375650958,0.01719037,3465.7,3465.0,0.04364879]
[1732375651142,0.11719037,3465.7,3465.0,0.04364879]
[1732375652220,0.55,3465.6,3465.0,0.04364879]
[1732375652423,0.01719037,3465.5,3465.0,0.04364879]
[1732375652942,0.55,3465.6,3465.0,0.04364879]
[1732375653251,0.55,3465.7,3465.0,0.04364879]
[1732375653558,0.1,3466.3,3465.0,0.04364879]
[1732375653760,0.11719037,3466.2,3465.1,0.6825]
[1732375654640,0.11719037,3466.2,3465.1,0.6887038]
[1732375655145,0.55,3466.0,3465.1,0.6887038]
[1732375655467,0.01719037,3465.9,3465.1,0.6887038]
[1732375657224,0.01719037,3465.9,3465.1,0.7227808]
[1732375658057,0.55,3466.1,3465.1,0.7227808]
[1732375658263,0.01719037,3466.0,3465.1,0.7227808]
[1732375658823,0.55,3466.1,3465.1,0.7227808]
[1732375659830,0.1,3466.2,3465.1,0.7227808]
[1732375660225,0.55,3466.0,3465.1,0.7227808]
[1732375660426,0.1,3466.1,3465.1,0.7227808]
[1732375660748,0.55,3466.0,3465.1,0.7227808]
[1732375660949,0.56719037,3466.0,3465.1,0.7227808]
[1732375661675,0.01719037,3466.0,3465.1,0.7227808]
[1732375661881,0.55,3466.0,3465.1,0.7227808]
[1732375662178,0.55,3466.3,3465.1,0.7227808]
[1732375662375,0.55,3466.3,3465.2,0.02885547]
[1732375664365,0.8045,3465.2,3462.2,0.2878]
[1732375664568,0.55,3465.1,3462.4,0.2878]
[1732375664871,0.55,3465.1,3462.6,0.2878]
[1732375665177,0.58607931,3465.1,3462.8,0.2878]
[1732375665378,0.58607931,3465.1,3462.9,0.02611279]
[1732375665943,0.58607931,3465.1,3463.1,0.4662]
[1732375666257,0.58607931,3465.1,3463.2,0.49231283]
[1732375666476,0.73513724,3465.1,3463.2,0.49231283]
[1732375667488,0.69905793,3465.1,3463.2,0.49231283]
[1732375667691,0.03607935,3465.0,3463.2,0.49231283]
[1732375667993,0.55,3464.9,3463.3,0.4662]
[1732375668193,0.03608178,3464.8,3463.4,0.02611771]
[1732375668395,0.55,3464.7,3463.4,0.02611771]
[1732375668681,0.03608177,3464.6,3463.4,0.31391771]
[1732375668845,0.55,3464.8,3463.4,0.31391771]
[1732375669283,0.55,3465.0,3463.4,0.31391771]
[1732375669485,0.55,3465.0,3464.7,0.00940742]
[1732375669659,0.55,3464.8,3464.7,0.00940742]
[1732375670163,0.55,3465.0,3464.7,0.00940742]
[1732375671272,0.69905818,3465.0,3464.7,0.00940742]
[1732375672985,0.55,3464.8,3464.7,0.00940742]
[1732375673366,0.55,3464.8,3461.8,3.0]
[1732375673367,0.1,3463.4,3460.6,0.4662]
[1732375673695,0.8151,3463.3,3461.3,0.4662]
[1732375673852,0.55,3462.9,3461.4,0.19582004]
[1732375674051,0.8151,3462.8,3461.4,0.19582004]
[1732375676657,0.8151,3463.5,3461.5,0.4662]
[1732375677349,0.03609519,3463.4,3461.5,0.4662]
[1732375680753,0.37645471,3463.4,3461.5,0.4662]
[1732375681502,0.47645471,3463.4,3461.5,0.4662]
[1732375681964,0.1,3462.1,3461.3,0.69972281]
[1732375682164,0.8151,3461.9,3460.8,1.49401787]
[1732375682366,0.8151,3461.9,3460.2,1.45307668]
[1732375683556,0.8151,3461.9,3460.2,1.91927668]
[1732375683759,0.8151,3461.9,3460.4,1.40562564]
[1732375685301,0.1,3462.8,3460.6,1.46461494]
[1732375685499,0.1,3462.4,3460.8,1.49401787]
[1732375685677,0.55,3462.8,3461.0,1.47388962]
[1732375686016,0.1,3462.4,3461.0,1.47388962]
[1732375686170,0.03610318,3462.7,3460.8,1.49401787]
[1732375686371,0.1,3462.9,3461.0,1.47388962]
[1732375686679,0.55,3462.8,3461.0,1.47388962]
[1732375686877,0.55,3462.8,3461.2,1.49200035]
[1732375687079,0.0361032,3464.0,3461.0,1.47388962]
[1732375687080,0.1,3463.1,3461.0,1.47388962]
[1732375687279,0.1,3462.8,3461.0,1.47388962]
[1732375687468,0.1,3462.8,3461.2,1.49200035]
[1732375687670,0.1,3463.1,3461.2,1.49200035]
[1732375688411,0.03610071,3463.3,3461.2,1.49200035]
[1732375688412,0.81,3462.7,3461.2,1.49200035]
[1732375688605,0.81,3462.7,3461.3,0.16622695]
[1732375689522,0.65,3461.8,3460.8,1.49401787]
[1732375689685,0.772,3461.3,3460.8,1.49401787]
[1732375690014,1.31733966,3462.6,3457.9,1.43072936]
[1732375690015,0.55,3462.3,3457.9,1.43072936]
[1732375690172,0.1,3462.6,3458.2,0.7823]
[1732375690372,0.55,3462.5,3458.5,1.44938783]
[1732375690604,0.1,3462.7,3458.5,1.44938783]
[1732375690605,0.55,3462.3,3459.5,1.4122508]
[1732375690805,0.55,3462.3,3459.8,1.47670668]
[1732375690806,0.0361068,3462.2,3459.8,1.47670668]
[1732375690972,0.55,3462.3,3459.4,0.2878]
[1732375690973,0.55,3462.3,3459.9,2.36306988]
[1732375691171,0.55,3462.3,3459.9,2.21539921]
[1732375691375,0.55,3462.1,3459.9,2.21539921]
[1732375691608,0.1,3462.4,3460.3,1.47207578]
[1732375691817,0.58610795,3462.3,3460.3,1.47207578]
[1732375692120,0.1,3461.9,3460.5,1.48267356]
[1732375692413,0.55,3461.8,3460.3,1.47207578]
[1732375692621,0.55,3461.8,3458.1,1.46641865]
[1732375692622,0.772,3461.7,3458.1,1.46641865]
[1732375692780,0.03611349,3461.6,3458.5,1.68808442]
[1732375693424,0.772,3461.5,3458.5,1.68808442]
[1732375693706,0.772,3461.5,3458.2,0.18025752]
[1732375693707,0.772,3461.2,3458.8,1.76975751]
[1732375695721,0.772,3461.2,3459.5,1.72698528]
[1732375695877,0.772,3461.2,3459.6,0.17269853]
[1732375696078,0.772,3461.2,3459.7,1.48028753]
[1732375696678,0.772,3461.2,3459.9,1.444869]
[1732375697804,0.1,3462.0,3459.9,1.444869]
[1732375698012,0.1,3462.2,3460.1,1.4230017]
[1732375698315,0.03610896,3462.1,3460.1,1.4230017]
[1732375698621,0.03610896,3462.1,3460.0,0.2210369]
[1732375698622,0.03610896,3462.1,3460.3,1.74150731]
[1732375698808,0.1,3460.9,3460.1,1.4230017]
[1732375699009,0.1,3461.3,3458.9,1.47187909]
[1732375699320,0.1,3461.1,3459.1,1.4391738]
[1732375699476,0.55,3461.5,3459.1,1.4391738]
[1732375699676,0.55,3461.5,3459.3,1.48217266]
[1732375699893,0.0361173,3462.5,3459.0,0.14718791]
[1732375699894,0.55,3461.7,3459.6,0.7823]
[1732375700218,0.1,3462.3,3460.0,1.44051401]
[1732375700390,0.0361173,3462.5,3460.3,1.45370731]
[1732375700391,0.1,3462.5,3460.3,1.45370731]
[1732375700581,0.2,3462.6,3460.5,1.43706781]
[1732375700919,0.872,3462.5,3460.7,1.46647984]
[1732375701122,0.1,3462.4,3460.7,1.46647984]
[1732375701326,0.9081048,3462.4,3460.9,1.45491321]
[1732375701621,0.9081048,3462.4,3460.5,1.43706781]
[1732375701778,0.9081048,3462.4,3460.7,1.46647984]
[1732375701979,0.9081048,3462.4,3460.5,1.43706781]
[1732375702813,0.772,3462.2,3460.5,1.43706781]
[1732375703017,0.772,3462.0,3460.7,1.46647984]
[1732375703315,0.772,3461.8,3460.5,1.43706781]
[1732375703521,0.772,3461.8,3460.7,1.46647984]
[1732375703688,0.772,3461.8,3460.9,1.45491321]
[1732375704087,0.1,3462.4,3460.9,1.45491321]
[1732375704300,0.1,3462.7,3461.1,1.46632292]
[1732375704513,0.13610505,3462.6,3460.9,1.45491321]
[1732375704810,0.13610505,3462.6,3461.1,1.46632292]
[1732375705013,0.13610505,3462.6,3460.4,0.14537073]
[1732375705014,0.1,3462.6,3460.8,1.71772683]
[1732375705323,0.1,3462.6,3461.0,1.44512405]
[1732375705483,0.1,3462.5,3461.0,1.44512405]
[1732375705682,0.55,3462.4,3461.0,1.44512405]
[1732375705985,0.03610611,3462.3,3461.0,1.44512405]
[1732375706186,0.03610611,3462.3,3461.2,1.48666088]
[1732375706430,0.03610611,3462.3,3460.8,1.71772683]
[1732375707086,0.8274,3462.4,3460.8,1.71772683]
[1732375707288,0.8274,3462.4,3460.9,0.17177268]
[1732375707504,0.8274,3462.4,3461.0,1.44512405]
[1732375707723,0.8274,3462.4,3460.4,0.82891828]
[1732375707724,0.8274,3462.4,3460.8,1.71772683]
[1732375708383,0.8274,3462.4,3460.4,0.82891828]
[1732375708384,0.8274,3461.3,3460.5,1.43706781]
[1732375708608,0.86351724,3461.2,3459.2,1.41083886]
[1732375708814,0.86351724,3461.2,3459.7,1.48028753]
[1732375709024,0.86351724,3461.2,3459.4,1.45418742]
[1732375709339,0.86351724,3461.2,3459.6,1.71672704]
[1732375709618,0.8274,3461.2,3459.6,1.71672704]
[1732375709832,0.03611341,3462.4,3460.3,0.2878]
[1732375709996,0.2,3462.5,3459.7,1.3435]
[1732375709997,0.1,3462.2,3460.6,1.45249907]
[1732375710384,0.1,3462.6,3460.6,1.45249907]
[1732375710631,0.13610428,3462.5,3460.8,1.42992683]
[1732375710786,0.13610428,3462.5,3460.6,1.45249907]
[1732375711813,0.55,3462.4,3460.6,1.45249907]
[1732375712012,0.03610636,3462.3,3460.8,1.42992683]
[1732375712216,0.03610636,3462.3,3460.6,1.45249907]
[1732375712605,0.65,3462.4,3460.6,1.45249907]
[1732375712813,0.8238,3462.3,3461.0,1.44512405]
[1732375713026,0.2,3463.3,3461.3,0.2878]
[1732375713201,0.1,3463.1,3461.3,0.2878]
[1732375713406,0.2,3463.1,3461.5,0.2878]
[1732375713627,0.2,3463.1,3461.4,0.19477533]
[1732375716110,0.77,3463.0,3461.4,0.19477533]
[1732375716316,0.03610035,3462.9,3461.4,0.19477533]
[1732375716911,0.77,3462.6,3461.4,0.19477533]
[1732375717150,0.77,3462.4,3461.4,0.19477533]
[1732375717446,0.77,3462.2,3461.4,0.19477533]
[1732375718540,0.03610713,3462.1,3461.4,0.19477533]
[1732375719739,0.77,3462.2,3461.4,0.19477533]
[1732375723342,0.3383789,3462.2,3461.4,0.19477533]
[1732375723544,0.13610314,3463.4,3461.4,1.02647533]
[1732375723761,0.1,3465.0,3461.8,0.2878]
[1732375723762,0.1,3463.6,3461.8,0.2878]
[1732375724646,0.13609474,3463.8,3461.8,0.2878]
[1732375724846,0.13609475,3464.4,3462.4,0.2878]
[1732375725050,0.67157344,3466.1,3462.1,0.55]
[1732375725051,1.53211321,3464.6,3462.6,0.2878]
[1732375725451,0.1,3464.3,3462.6,0.2878]
[1732375725869,0.2,3464.3,3462.6,0.2878]
[1732375726071,0.1,3464.0,3462.6,0.2878]
[1732375726459,0.4172,3463.9,3462.6,0.2878]
[1732375726661,0.03609073,3463.8,3462.6,0.2878]
[1732375726865,0.13609073,3463.8,3462.6,0.2878]
[1732375727067,0.13609073,3463.8,3462.3,0.2878]
[1732375727636,0.4172,3463.7,3461.6,0.2878]
[1732375727837,0.4172,3462.4,3461.0,1.44512405]
[1732375728048,0.13610712,3462.3,3461.0,1.44512405]
[1732375728677,0.23610712,3462.3,3461.0,1.44512405]
[1732375728846,0.23610712,3462.3,3461.2,1.48666088]
[1732375729051,0.23610712,3462.3,3461.0,1.44512405]
[1732375729688,0.4172,3462.2,3461.0,1.44512405]
[1732375729856,0.4172,3462.2,3460.6,1.45249907]
[1732375729857,0.23610827,3462.1,3460.6,1.45249907]
[1732375730183,0.4172,3462.0,3460.8,1.42992683]
[1732375730348,0.03611139,3461.9,3460.6,1.45249907]
[1732375730686,0.03611139,3461.9,3460.5,0.7513]
[1732375730687,0.4172,3462.0,3460.8,1.42992683]
[1732375730855,0.4172,3462.0,3460.6,1.45249907]
[1732375731058,0.03611137,3461.9,3460.8,1.42992683]
[1732375731369,0.03611137,3461.9,3460.6,1.45249907]
[1732375731569,0.03611137,3461.9,3460.7,0.22037991]
[1732375731884,0.4172,3461.8,3460.8,1.42992683]
[1732375732079,0.4172,3461.8,3460.6,1.45249907]
[1732375734787,0.4172,3461.8,3460.1,1.4230017]
[1732375734995,0.4172,3461.8,3460.3,1.45370731]
[1732375735280,0.4172,3461.8,3460.1,1.4230017]
[1732375735494,0.45331125,3461.7,3460.1,1.4230017]
[1732375735781,0.45331125,3461.7,3460.3,1.45370731]
[1732375739095,0.1,3460.7,3458.8,1.48195751]
[1732375739297,0.1,3460.7,3459.0,1.49516408]
[1732375739475,0.1,3460.7,3458.8,1.48195751]
[1732375741608,0.1,3460.7,3459.0,1.49516408]
[1732375741766,0.1,3460.7,3459.2,1.41083886]
[1732375741963,0.1,3460.7,3459.0,1.49516408]
[1732375742663,0.1,3460.7,3458.7,1.48188273]
[1732375742664,0.1,3461.3,3459.4,2.24028742]
[1732375742886,0.1,3461.5,3459.6,1.42892704]
[1732375743062,0.1,3461.2,3459.6,1.42892704]
[1732375743286,0.1,3461.5,3459.6,1.42892704]
[1732375743588,0.1,3461.5,3459.9,0.2878]
[1732375743805,0.1,3461.9,3460.2,1.45902556]
[1732375744097,0.1,3461.9,3460.3,0.55]
[1732375744313,0.1,3461.7,3460.4,1.44556565]
[1732375744515,0.1,3461.9,3460.6,1.45249907]
[1732375744810,0.1,3462.0,3460.4,1.44556565]
[1732375744981,0.1,3461.8,3460.5,0.22833657]
[1732375745177,0.1,3462.0,3460.8,1.42992683]
[1732375745379,0.1,3461.8,3461.0,1.44512405]
[1732375745874,0.1,3461.5,3460.5,1.43706781]
[1732375746204,0.1,3461.5,3460.7,1.46647984]
[1732375746512,0.1,3461.5,3460.5,1.43706781]
[1732375749714,0.1,3461.2,3460.5,1.43706781]
[1732375752416,0.1,3460.9,3460.5,1.43706781]
[1732375753331,0.1,3460.9,3460.6,0.14716827]
[1732375753680,0.1,3460.9,3460.7,1.46647984]
[1732375753875,0.1,3460.9,3460.5,1.43706781]
[1732375757723,0.0355,3460.8,3460.5,1.43706781]
[1732375758994,0.03612408,3460.8,3460.5,1.43706781]
[1732375759577,3.0,3462.0,3460.5,1.58423608]
[1732375759824,0.03612272,3461.9,3460.5,1.58423608]
[1732375760881,0.03612093,3462.2,3460.5,1.58423608]
[1732375761094,0.03612093,3462.2,3460.7,1.46647984]
[1732375761484,0.55,3462.1,3460.7,1.46647984]
[1732375761794,0.03612036,3462.0,3460.7,1.46647984]
[1732375762579,0.0361184,3462.5,3460.7,1.46647984]
[1732375762822,0.0361184,3462.5,3460.9,1.45491321]
[1732375763133,0.0361184,3462.5,3461.1,1.46632292]
[1732375763297,0.03610923,3463.2,3461.2,1.71376317]
[1732375763495,0.03610923,3463.2,3461.1,1.46632292]
[1732375763700,0.03610923,3463.2,3461.4,0.55]
[1732375763903,0.03610923,3463.2,3461.6,0.55]
[1732375764796,0.03610923,3463.2,3461.5,1.04414664]
[1732375766495,0.03610923,3463.2,3461.7,0.792]
[1732375767709,0.1,3464.2,3461.7,0.792]
[1732375767710,1.40936345,3463.8,3461.7,0.792]
[1732375767935,1.42746055,3463.6,3461.7,0.792]
[1732375768101,1.48981098,3463.4,3461.7,0.792]
[1732375768298,1.45417535,3463.7,3461.7,0.792]
[1732375768636,1.46306511,3464.2,3461.7,0.792]
[1732375768835,1.46741664,3464.0,3461.9,0.7905]
[1732375769133,1.40936345,3463.8,3462.3,0.7905]
[1732375769319,1.41883658,3464.8,3462.3,0.7905]
[1732375769519,1.43211321,3464.6,3462.3,0.7905]
[1732375769738,1.47004658,3464.4,3462.3,0.7905]
[1732375769893,1.46306511,3464.2,3462.3,0.7905]
[1732375770098,1.46741664,3464.0,3462.3,0.7905]
[1732375770335,1.46741664,3464.0,3462.2,0.55]
[1732375770336,1.49889905,3465.0,3462.6,0.55]
[1732375770627,1.49889905,3465.0,3461.8,0.40343112]
[1732375770628,1.41883658,3464.8,3463.0,0.55]
[1732375770815,1.43211321,3464.6,3463.1,0.7905]
[1732375771025,0.1,3466.0,3463.1,0.7905]
[1732375771026,1.48535463,3465.3,3463.1,0.7905]
[1732375771329,1.44386817,3465.1,3463.1,0.7905]
[1732375771504,1.41490278,3464.9,3463.1,0.7905]
[1732375771705,1.44525793,3464.7,3463.1,0.7905]
[1732375771904,1.49334065,3464.5,3463.1,0.7905]
[1732375772145,1.43444447,3464.3,3463.1,0.7905]
[1732375772296,1.44386817,3465.1,3463.1,0.7905]
[1732375772496,1.41490278,3464.9,3463.1,0.7905]
[1732375772730,1.44525793,3464.7,3463.1,0.7905]
[1732375772940,1.49334065,3464.5,3463.1,0.7905]
[1732375773237,1.43444447,3464.3,3463.2,1.13464339]
[1732375773444,1.49889905,3465.0,3463.2,0.7905]
[1732375773609,1.41883658,3464.8,3463.2,0.7905]
[1732375773800,1.48535463,3465.3,3464.4,1.1e-07]
[1732375774309,0.7997838,3465.4,3464.4,1.1e-07]
[1732375774310,1.44386817,3465.1,3464.4,1.1e-07]
[1732375774550,0.7997838,3465.4,3464.4,1.1e-07]
[1732375774551,1.48535463,3465.3,3464.4,1.1e-07]
[1732375774831,1.48618075,3465.6,3464.4,1.1e-07]
[1732375775033,1.4137196,3465.7,3464.5,2.7e-07]
[1732375775240,1.41921346,3466.5,3464.4,0.31198748]
[1732375775403,1.67356931,3466.5,3464.4,0.81873226]
[1732375775596,1.67356931,3466.5,3464.5,2.8e-07]
[1732375775801,1.67356931,3466.5,3463.7,0.1]
[1732375775997,1.48195823,3466.3,3463.7,0.1]
[1732375776311,1.48327902,3466.1,3464.0,3.0]
[1732375776533,1.41921346,3466.5,3464.1,0.31945036]
[1732375776848,1.49831305,3467.6,3464.2,0.68573573]
[1732375777009,1.40200984,3466.9,3464.4,3.0]
[1732375777217,0.03606373,3466.8,3464.5,0.31945036]
[1732375777427,0.03606373,3466.8,3464.4,3.0]
[1732375777428,0.36787651,3466.8,3464.4,3.0]
[1732375777599,0.22017736,3466.7,3464.6,0.55]
[1732375777807,0.03606374,3466.6,3464.6,0.55]
[1732375778228,0.33181278,3466.8,3464.5,0.85559537]
[1732375778229,0.03606375,3466.7,3464.5,0.85559537]
[1732375778434,1.41921346,3466.5,3464.8,0.7711]
[1732375778632,1.45527722,3466.5,3464.9,0.30559537]
[1732375778937,1.45527722,3466.5,3464.6,0.31945036]
[1732375778938,1.45527722,3466.5,3464.7,0.7711]
[1732375779106,1.59702181,3466.4,3464.9,0.7711]
[1732375779304,0.03606377,3466.3,3464.9,0.7711]